[Event "Karnataka State Open-ch 2018"]
[Site "Bengaluru"]
[Date "2018.04.16"]
[Round "6"]
[White "Shashidhar B Rai"]
[Black "Reetish, Padhi"]
[Result "1/2-1/2"]
[ECO "B00"]
[WhiteElo "1361"]
[BlackElo "1915"]
[Annotator "NA RC"]
[PlyCount "65"]
[EventDate "2018.??.??"]
[EventType "swiss"]
[EventCountry "IND"]
[SourceTitle "playchess.com"]
[Source "ChessBase"]
[SourceQuality "1"]
[TimeControl "5400+30"]

{[%evp 10,65,33,31,32767,41,38,23,54,0,35,50,32,-15,-22,32767,32767,-21,32767,32767,-23,32767,-22,32767,32767,-22,-17,-12,0,32767,32767,32767,32767,0,0,0,32767,0,0,0,32767,32767,32767,32767,32767,32767,32767,32767,32767,32767,0,32767,40,0,49,0,0,0]} 1. e4 {[%emt 0:00:00]} b6 {[%emt 0:00:14]} 2. d4 Bb7 3. Nc3 {[%emt 0:03:25]} e6 {[%emt 0:00:37]} 4. a3 {[%emt 0:01:15]} Nf6 {[%emt 0:00:59]} 5. Bd3 {[%emt 0:02:11]} c5 {[%emt 0:02:49]} 6. Nf3 {[%emt 0:05:18] B00: Queen's Fianchetto Defence, Nimzowitsch Defence} cxd4 {[%emt 0:00:38]} 7. Nxd4 {[%emt 0:00:31] LiveBook: 9 Games} Nc6 {[%emt 0:00:13]} 8. Nxc6 {[%emt 0:01:25]} Bxc6 {[%emt 0:00:07]} 9. Be3 $146 {[%emt 0:03:32]} ({Predecessor:} 9. Bf4 d6 10. Qe2 Be7 11. O-O-O Nd7 12. Bb5 Qc7 13. Qc4 Rc8 {1-0 (50) Hou,Y (2663)-Ghaem Maghami,E (2551) Almaty 2016}) 9... d5 {[%emt 0:11:54]} 10. exd5 {[%emt 0:00:57]} Nxd5 {[%emt 0:00:08]} 11. Nxd5 {[%emt 0:00:51]} ({Better is} 11. Be4 $14) 11... Qxd5 {[%emt 0:00:23]} 12. f3 {[%emt 0:14:59]} Bc5 {[%emt 0:05:47]} 13. Bxc5 {[%emt 0:01:19]} Qxc5 {[%emt 0:01:19]} 14. Qe2 {[%emt 0:01:48]} O-O {[%emt 0:03:56]} 15. O-O-O {[%emt 0:03:16]} b5 {[%emt 0:01:46]} 16. Be4 {[%emt 0:02:40]} Rab8 {[%emt 0:03:26]} 17. Bxc6 {[%emt 0:05:32]} Qxc6 {[%emt 0:00:07]} 18. Rd4 {[%emt 0:04:26]} b4 {[%emt 0:18:55]} 19. Rxb4 {[%emt 0:04:05]} Rxb4 {[%emt 0:00:08]} 20. axb4 {[%emt 0:00:04]} Qa4 {[%emt 0:00:09]} 21. Kb1 {[%emt 0:00:36]} Qxb4 {[%emt 0:00:29]} 22. c3 {[%emt 0:04:11]} Qd6 {[%emt 0:04:59]} 23. h3 {[%emt 0:09:36]} Rd8 {[%emt 0:03:19]} 24. Kc2 {[%emt 0:02:18]} Qc6 {[%emt 0:02:27]} 25. Kb1 {[%emt 0:02:06]} Qd5 {[%emt 0:03:08]} 26. Rc1 {[%emt 0:03:04]} h6 {[%emt 0:03:30]} 27. c4 {[%emt 0:07:57]} Qc5 {[%emt 0:04:09]} 28. Rc2 Rd4 {[%emt 0:11:34]} 29. b3 {[%emt 0:02:34]} Qb4 {[%emt 0:12:04]} 30. Qe3 {[%emt 0:08:27]} Rd1+ {[%emt 0:02:35]} 31. Rc1 {[%emt 0:01:02]} Rd2 {[%emt 0:02:42]} 32. Rc2 {[%emt 0:00:18]} Rd1+ {[%emt 0:01:02]} 33. Rc1 $11 {[%emt 0:00:02]} 1/2-1/2

[Event "Karnataka State Open-ch 2018"]
[Site "Bengaluru"]
[Date "2018.04.16"]
[Round "6"]
[White "Adarsh Narayanan"]
[Black "Malla, Nooka Raju"]
[Result "0-1"]
[ECO "B40"]
[WhiteElo "1299"]
[BlackElo "1969"]
[Annotator "NA RC"]
[PlyCount "108"]
[EventDate "2018.??.??"]
[EventType "swiss"]
[EventCountry "IND"]
[SourceTitle "playchess.com"]
[Source "ChessBase"]
[SourceQuality "1"]
[TimeControl "5400+30"]

{[%evp 14,107,-13,-47,-29,-69,-62,-84,-48,-61,-44,-76,-83,32767,-68,32767,32767,32767,-135,-200,-240,32767,32767,-236,-255,-425,-375,-377,-367,-376,-371,-450,-520,-581,-598,-631,-619,-609,-643,-637,32767,-720,-760,-716,32767,32767,32767,32767,32767,32767,-1038,-967,32767,-1053,-29954,32767,32767,32767,32767,-29977,-29984,-12837,-29986,-29986,-29984,-29986,-29987,-29987,-29987,-29986,-29987,-29989,-29991,-29991,32767,32767,32767,32767,32767,-29992,-29992,-29992,32767,32767,32767,32767,32767,32767,32767,32767,32767,32767,32767,32767,32767,-29999]} 1. e4 {[%emt 0:00:00]} c5 {[%emt 0:01:37]} 2. Nf3 {[%emt 0:00:00]} e6 {[%emt 0:00:17]} 3. d4 {[%emt 0:00:00]} cxd4 {[%emt 0:00:08]} 4. Nxd4 {[%emt 0:00:03]} Nf6 {[%emt 0:00:11]} 5. Nc3 {[%emt 0:00:09]} Bb4 {[%emt 0:00:23]} 6. f3 {[%emt 0:03:41]} Nc6 {[%emt 0:02:57]} 7. Be3 {[%emt 0:03:46]} O-O {[%emt 0:02:30]} 8. Qd2 {[%emt 0:00:35] B45: Sicilian Four Knights} d5 {[%emt 0:00:44]} 9. Nxc6 {[%emt 0:04:08]} (9. O-O-O e5 10. Nxc6 bxc6 11. a3 Ba5 12. exd5 cxd5 13. Bc5 d4 14. Qg5 h6 15. Qh4 Re8 {0-1 (50) Terletsky,O (2250)-Grekh,A (2373) Horodok 2013}) 9... bxc6 {[%emt 0:00:19]} 10. a3 {[%emt 0:04:18]} Ba5 {[%emt 0:02:18]} 11. b4 {[%emt 0:02:18]} Bb6 {[%emt 0:00:27]} 12. Bg5 $146 {[%emt 0:01:22]} ({Find the theoretical novelty and annotate with similar games:} 12. Na4 Bxe3 13. Qxe3 dxe4 14. fxe4 Ng4 15. Qf3 e5 {½-½ (45) Volas,N (2114)-Jovic,S (1854) Obrenovac 2008}) 12... Bc7 {[%emt 0:14:07]} 13. Rd1 {[%emt 0:09:57]} h6 {[%emt 0:04:44]} 14. Bh4 {[%emt 0:00:43]} Bd6 {[%emt 0:01:59]} 15. f4 {[%emt 0:03:33]} Nxe4 {[%emt 0:02:17]} 16. Bxd8 {[%emt 0:01:17]} (16. Nxe4 $17 Qxh4+ 17. g3) 16... Nxd2 {[%emt 0:00:14]} 17. Bh4 {[%emt 0:01:30]} Nxf1 {[%emt 0:00:44]} 18. Rxf1 {[%emt 0:00:23]} a5 {[%emt 0:00:23]} 19. Na2 $2 {[%emt 0:01:47]} (19. Ne4 Bb8 20. Nc5) 19... axb4 {[%emt 0:02:22]} 20. Nxb4 {[%emt 0:00:10]} c5 {[%emt 0:00:31]} 21. Nd3 {[%emt 0:03:48]} Rxa3 {[%emt 0:00:26]} 22. Ne5 {[%emt 0:05:41] [#]} g5 $1 {[%emt 0:07:14]} 23. Bg3 {[%emt 0:01:01]} gxf4 {[%emt 0:00:21]} 24. Bxf4 {[%emt 0:01:10]} Bxe5 {[%emt 0:00:12]} 25. Bxe5 {[%emt 0:01:28]} Re3+ {[%emt 0:00:12]} 26. Kf2 {[%emt 0:00:38]} Rxe5 {[%emt 0:00:14]} 27. Kg1 {[%emt 0:01:29]} Ba6 {[%emt 0:02:18]} 28. Rf2 {[%emt 0:00:47]} Re2 {[%emt 0:00:55]} 29. Rxe2 {[%emt 0:00:22]} Bxe2 {[%emt 0:00:08]} 30. Rd2 {[%emt 0:00:10]} Bc4 {[%emt 0:00:14]} 31. Kf2 {[%emt 0:00:08]} e5 {[%emt 0:00:37]} 32. c3 {[%emt 0:00:12]} Ra8 {[%emt 0:00:11]} 33. h3 {[%emt 0:00:25]} Ra2 {[%emt 0:00:11]} 34. Rxa2 {[%emt 0:00:19]} Bxa2 {[%emt 0:00:06]} 35. Ke3 {[%emt 0:00:05]} f5 {[%emt 0:00:19]} 36. g3 {[%emt 0:00:05]} Kf7 {[%emt 0:00:11]} 37. g4 {[%emt 0:00:23]} f4+ {[%emt 0:00:16]} 38. Kf3 {[%emt 0:00:21]} Bb1 {[%emt 0:00:26]} 39. h4 {[%emt 0:01:02]} Be4+ {[%emt 0:00:11]} 40. Kf2 {[%emt 0:00:07]} Ke6 {[%emt 0:00:16]} 41. Ke2 {[%emt 0:00:32]} Kd6 {[%emt 0:01:14]} 42. c4 {[%emt 0:00:16]} dxc4 {[%emt 0:00:41]} 43. Kd2 {[%emt 0:00:05]} Kd5 {[%emt 0:00:17]} 44. g5 {[%emt 0:00:27]} hxg5 {[%emt 0:00:07]} 45. hxg5 {[%emt 0:00:02]} Kd4 {[%emt 0:00:15]} 46. Ke2 {[%emt 0:00:14]} c3 {[%emt 0:00:09]} 47. g6 {[%emt 0:00:11]} Bxg6 {[%emt 0:00:11]} 48. Kd1 {[%emt 0:00:12]} f3 {[%emt 0:00:14]} 49. Ke1 {[%emt 0:00:03]} c2 {[%emt 0:00:18]} 50. Kd2 {[%emt 0:00:12]} f2 {[%emt 0:00:14]} 51. Kc1 {[%emt 0:00:02]} f1=Q+ {[%emt 0:00:14]} 52. Kb2 {[%emt 0:00:05]} Qb1+ {[%emt 0:00:15]} 53. Ka3 {[%emt 0:00:07]} Kc4 {[%emt 0:00:35]} 54. Ka4 {[%emt 0:00:11]} Qb4# {[%emt 0:00:08]} (54... Qa2# $142) 0-1